[Event "*** Titled Tuesday Blitz"]
[Site "Chess.com"]
[Date "2020.04.07"]
[Round "5"]
[White "kleopl"]
[Black "Flawless_Fighter"]
[Result "0-1"]
[WhiteElo "2395"]
[BlackElo "2568"]
[TimeControl "180+1"]
[EndTime "13:57:56 PDT"]
[Termination "Flawless_Fighter won by checkmate"]

1. c4 {[%clk 0:03:00.9]} 1... Nf6 {[%clk 0:02:59.3]} 2. Nc3 {[%clk 0:02:58.9]}
2... e6 {[%clk 0:03:00]} 3. e4 {[%clk 0:02:57.9]} 3... d5 {[%clk 0:03:00.9]} 4.
e5 {[%clk 0:02:57.3]} 4... d4 {[%clk 0:03:01.4]} 5. exf6 {[%clk 0:02:57.1]} 5...
dxc3 {[%clk 0:03:02]} 6. bxc3 {[%clk 0:02:58]} 6... Qxf6 {[%clk 0:03:02.6]} 7.
Nf3 {[%clk 0:02:57.9]} 7... b6 {[%clk 0:03:03]} 8. Be2 {[%clk 0:02:56.3]} 8...
Bb7 {[%clk 0:03:02.9]} 9. O-O {[%clk 0:02:56.1]} 9... Nd7 {[%clk 0:02:55.3]} 10.
d4 {[%clk 0:02:55.6]} 10... h6 {[%clk 0:02:54.8]} 11. Re1 {[%clk 0:02:54.2]}
11... Be7 {[%clk 0:02:52.2]} 12. Be3 {[%clk 0:02:38.6]} 12... O-O {[%clk
0:02:51.3]} 13. Qd2 {[%clk 0:02:38.8]} 13... Rfd8 {[%clk 0:02:48.2]} 14. Rab1
{[%clk 0:02:32.2]} 14... c5 {[%clk 0:02:31.5]} 15. Qc2 {[%clk 0:02:29.7]} 15...
Rac8 {[%clk 0:02:25.9]} 16. a4 {[%clk 0:02:27.8]} 16... cxd4 {[%clk 0:02:16.4]}
17. cxd4 {[%clk 0:02:23.8]} 17... e5 {[%clk 0:02:14.6]} 18. a5 {[%clk
0:02:15.2]} 18... Bxf3 {[%clk 0:02:10.6]} 19. Bxf3 {[%clk 0:02:14.8]} 19... exd4
{[%clk 0:02:11.1]} 20. Bxd4 {[%clk 0:02:06.5]} 20... Qxd4 {[%clk 0:02:07.9]} 21.
Rxe7 {[%clk 0:02:06.3]} 21... Ne5 {[%clk 0:02:02.6]} 22. Rxa7 {[%clk 0:01:54.9]}
22... Nxf3+ {[%clk 0:01:47]} 23. gxf3 {[%clk 0:01:55.8]} 23... Rxc4 {[%clk
0:01:45.1]} 24. Qf5 {[%clk 0:01:48.6]} 24... bxa5 {[%clk 0:01:32.1]} 25. Qxf7+
{[%clk 0:01:43.9]} 25... Kh8 {[%clk 0:01:32.5]} 26. Rxa5 {[%clk 0:01:17.5]}
26... Rc2 {[%clk 0:01:16.4]} 27. Rf1 {[%clk 0:01:10.7]} 27... Rd2 {[%clk
0:01:01.3]} 28. Ra7 {[%clk 0:01:01.8]} 28... Rb2 {[%clk 0:00:49.1]} 29. Re7
{[%clk 0:00:57]} 29... Rd2 {[%clk 0:00:35.3]} 30. Kg2 {[%clk 0:00:54.4]} 30...
Qb2 {[%clk 0:00:28.4]} 31. Kg3 {[%clk 0:00:45.2]} 31... Qb8+ {[%clk 0:00:26.8]}
32. f4 {[%clk 0:00:40.2]} 32... Qb2 {[%clk 0:00:22.6]} 33. f5 {[%clk 0:00:33.4]}
33... Qc3+ {[%clk 0:00:19.1]} 34. Kg2 {[%clk 0:00:21.9]} 34... Qc6+ {[%clk
0:00:19.1]} 35. Kg1 {[%clk 0:00:20.8]} 35... Rg8 {[%clk 0:00:19.1]} 36. f6
{[%clk 0:00:17.1]} 36... gxf6+ {[%clk 0:00:15.9]} 37. Qxg8+ {[%clk 0:00:16.5]}
37... Kxg8 {[%clk 0:00:16.2]} 38. Ra1 {[%clk 0:00:16.1]} 38... Qf3 {[%clk
0:00:07.7]} 39. Rf1 {[%clk 0:00:15.3]} 39... Rd1 {[%clk 0:00:07.3]} 40. Re3
{[%clk 0:00:12.8]} 40... Rxf1+ {[%clk 0:00:04.2]} 41. Kxf1 {[%clk 0:00:13.7]}
41... Qh1+ {[%clk 0:00:04.9]} 42. Ke2 {[%clk 0:00:14]} 42... Qxh2 {[%clk
0:00:05.8]} 43. Rg3+ {[%clk 0:00:14.3]} 43... Kf7 {[%clk 0:00:06.5]} 44. Kf3
{[%clk 0:00:14.5]} 44... h5 {[%clk 0:00:07]} 45. Ke2 {[%clk 0:00:14.2]} 45...
Qh1 {[%clk 0:00:07.6]} 46. Ra3 {[%clk 0:00:12.8]} 46... Qe4+ {[%clk 0:00:07.5]}
47. Re3 {[%clk 0:00:11.7]} 47... Qd5 {[%clk 0:00:08.1]} 48. Kf1 {[%clk
0:00:09.7]} 48... h4 {[%clk 0:00:08.2]} 49. Kg1 {[%clk 0:00:10]} 49... Kg6
{[%clk 0:00:05.9]} 50. Kh2 {[%clk 0:00:09.9]} 50... Qd6+ {[%clk 0:00:06]} 51.
Kh3 {[%clk 0:00:09.4]} 51... Qf4 {[%clk 0:00:06.6]} 52. Kg2 {[%clk 0:00:08.7]}
52... Qg4+ {[%clk 0:00:07.1]} 53. Kh2 {[%clk 0:00:08.2]} 53... Kf7 {[%clk
0:00:07.5]} 54. Rh3 {[%clk 0:00:06.9]} 54... Qf4+ {[%clk 0:00:06.8]} 55. Kg2
{[%clk 0:00:06.9]} 55... Qg4+ {[%clk 0:00:07.1]} 56. Kh2 {[%clk 0:00:07.2]}
56... Qd4 {[%clk 0:00:07.4]} 57. Re3 {[%clk 0:00:07]} 57... f5 {[%clk
0:00:07.9]} 58. Kh3 {[%clk 0:00:06.6]} 58... Qg4+ {[%clk 0:00:07.3]} 59. Kh2
{[%clk 0:00:06.2]} 59... Kf6 {[%clk 0:00:06]} 60. Ra3 {[%clk 0:00:05]} 60... f4
{[%clk 0:00:06]} 61. Ra6+ {[%clk 0:00:04.3]} 61... Ke5 {[%clk 0:00:06]} 62. Ra4
{[%clk 0:00:04.2]} 62... Kd5 {[%clk 0:00:04.4]} 63. Rb4 {[%clk 0:00:02]} 63...
Kc5 {[%clk 0:00:04.1]} 64. Ra4 {[%clk 0:00:01.7]} 64... Kb5 {[%clk 0:00:04.5]}
65. Ra3 {[%clk 0:00:02.2]} 65... f3 {[%clk 0:00:02.6]} 66. Rd3 {[%clk
0:00:02.8]} 66... Qg2# {[%clk 0:00:02.6]} 0-1

[Event "*** Titled Tuesday Blitz"]
[Site "Chess.com"]
[Date "2020.04.07"]
[Round "5"]
[White "dusanacns"]
[Black "gvanna"]
[Result "1-0"]
[WhiteElo "2730"]
[BlackElo "2453"]
[TimeControl "180+1"]
[EndTime "13:57:58 PDT"]
[Termination "dusanacns won by checkmate"]

1. e4 {[%clk 0:03:00.9]} 1... c5 {[%clk 0:02:59.7]} 2. Nf3 {[%clk 0:02:57.5]}
2... g6 {[%clk 0:02:59.9]} 3. c3 {[%clk 0:02:57.2]} 3... d5 {[%clk 0:02:59.6]}
4. e5 {[%clk 0:02:56.4]} 4... Bg7 {[%clk 0:02:58.6]} 5. d4 {[%clk 0:02:56.5]}
5... Nc6 {[%clk 0:02:57.2]} 6. Bb5 {[%clk 0:02:54.2]} 6... Bg4 {[%clk
0:02:54.3]} 7. Nbd2 {[%clk 0:02:35]} 7... Qb6 {[%clk 0:02:42.1]} 8. Bxc6+ {[%clk
0:02:33.4]} 8... Qxc6 {[%clk 0:02:41.7]} 9. O-O {[%clk 0:02:30]} 9... e6 {[%clk
0:02:37.5]} 10. h3 {[%clk 0:02:30.2]} 10... Bxf3 {[%clk 0:02:34.7]} 11. Nxf3
{[%clk 0:02:31.1]} 11... Ne7 {[%clk 0:02:35.1]} 12. Re1 {[%clk 0:02:21.8]} 12...
h6 {[%clk 0:02:29.3]} 13. g4 {[%clk 0:02:09.8]} 13... O-O {[%clk 0:02:20.8]} 14.
Be3 {[%clk 0:02:06]} 14... cxd4 {[%clk 0:02:10]} 15. cxd4 {[%clk 0:01:59.8]}
15... Rac8 {[%clk 0:02:08.7]} 16. Qd2 {[%clk 0:01:58.1]} 16... Kh7 {[%clk
0:02:05.8]} 17. Rec1 {[%clk 0:01:51.6]} 17... Qb5 {[%clk 0:02:03.7]} 18. h4
{[%clk 0:01:49.2]} 18... f6 {[%clk 0:01:48.4]} 19. exf6 {[%clk 0:01:42.5]} 19...
Rxf6 {[%clk 0:01:45.4]} 20. Ne5 {[%clk 0:01:25.5]} 20... Rxc1+ {[%clk
0:01:40.2]} 21. Rxc1 {[%clk 0:01:26.4]} 21... Nc6 {[%clk 0:01:40.5]} 22. Nxc6
{[%clk 0:00:38.5]} 22... bxc6 {[%clk 0:01:40.1]} 23. Qc2 {[%clk 0:00:38.6]}
23... Bf8 {[%clk 0:00:41.8]} 24. b3 {[%clk 0:00:32]} 24... e5 {[%clk 0:00:24.1]}
25. dxe5 {[%clk 0:00:30.5]} 25... Re6 {[%clk 0:00:24.7]} 26. h5 {[%clk
0:00:28.1]} 26... c5 {[%clk 0:00:21.3]} 27. hxg6+ {[%clk 0:00:19.8]} 27... Rxg6
{[%clk 0:00:21.5]} 28. Qf5 {[%clk 0:00:20.7]} 28... Kg7 {[%clk 0:00:22]} 29. g5
{[%clk 0:00:13.8]} 29... hxg5 {[%clk 0:00:21.1]} 30. Kg2 {[%clk 0:00:08.4]}
30... Be7 {[%clk 0:00:18.4]} 31. Rd1 {[%clk 0:00:04.5]} 31... Qc6 {[%clk
0:00:18.7]} 32. f3 {[%clk 0:00:03.8]} 32... d4 {[%clk 0:00:18.4]} 33. Bf2 {[%clk
0:00:03.5]} 33... g4 {[%clk 0:00:18.9]} 34. Bg3 {[%clk 0:00:02.9]} 34... gxf3+
{[%clk 0:00:19]} 35. Qxf3 {[%clk 0:00:03.8]} 35... Qxf3+ {[%clk 0:00:16]} 36.
Kxf3 {[%clk 0:00:04.7]} 36... Kf7 {[%clk 0:00:15.7]} 37. Bf4 {[%clk 0:00:04.1]}
37... Ke6 {[%clk 0:00:16.1]} 38. Ke4 {[%clk 0:00:04.1]} 38... Rg4 {[%clk
0:00:16.2]} 39. Kf3 {[%clk 0:00:04.3]} 39... Rh4 {[%clk 0:00:16.6]} 40. Rg1
{[%clk 0:00:03.8]} 40... Rh3+ {[%clk 0:00:16.5]} 41. Ke4 {[%clk 0:00:03.5]}
41... Rh4 {[%clk 0:00:12.8]} 42. Rg6+ {[%clk 0:00:03.3]} 42... Kf7 {[%clk
0:00:13.2]} 43. Rg2 {[%clk 0:00:03.6]} 43... Ke6 {[%clk 0:00:12.2]} 44. Rg6+
{[%clk 0:00:02.1]} 44... Kf7 {[%clk 0:00:12.9]} 45. Rg1 {[%clk 0:00:03]} 45...
Bf8 {[%clk 0:00:13.7]} 46. Rg2 {[%clk 0:00:03.5]} 46... Bh6 {[%clk 0:00:13.9]}
47. Kd5 {[%clk 0:00:02.5]} 47... Bxf4 {[%clk 0:00:13.4]} 48. e6+ {[%clk
0:00:03.4]} 48... Ke7 {[%clk 0:00:13.1]} 49. Rg7+ {[%clk 0:00:03.2]} 49... Ke8
{[%clk 0:00:13.7]} 50. Rg8+ {[%clk 0:00:03.3]} 50... Ke7 {[%clk 0:00:14]} 51.
Rg7+ {[%clk 0:00:03.8]} 51... Kf6 {[%clk 0:00:13.4]} 52. Rf7+ {[%clk 0:00:03.9]}
52... Kg5 {[%clk 0:00:12.2]} 53. e7 {[%clk 0:00:03.5]} 53... Rh8 {[%clk
0:00:05.5]} 54. Rf8 {[%clk 0:00:03.6]} 54... Rh2 {[%clk 0:00:03.2]} 55. e8=Q
{[%clk 0:00:03.3]} 55... d3 {[%clk 0:00:03.9]} 56. Rg8+ {[%clk 0:00:03]} 56...
Kh4 {[%clk 0:00:02.7]} 57. Qe1+ {[%clk 0:00:01.8]} 57... Kh3 {[%clk 0:00:01.8]}
58. Qe6+ {[%clk 0:00:01.6]} 58... Kh4 {[%clk 0:00:01.9]} 59. Qg4# {[%clk
0:00:02.5]} 1-0

[Event "*** Titled Tuesday Blitz"]
[Site "Chess.com"]
[Date "2020.04.07"]
[Round "5"]
[White "yawnpawn"]
[Black "esskeettit"]
[Result "1/2-1/2"]
[WhiteElo "1759"]
[BlackElo "2329"]
[TimeControl "180+1"]
[EndTime "13:58:12 PDT"]
[Termination "Game drawn by repetition"]

1. e4 {[%clk 0:03:00.9]} 1... c5 {[%clk 0:02:59.6]} 2. Nf3 {[%clk 0:02:59.6]}
2... Nc6 {[%clk 0:02:59.9]} 3. Bb5 {[%clk 0:02:58.1]} 3... g6 {[%clk 0:02:52.9]}
4. O-O {[%clk 0:02:55.3]} 4... Bg7 {[%clk 0:02:53.2]} 5. c3 {[%clk 0:02:54.7]}
5... Nf6 {[%clk 0:02:52.8]} 6. Re1 {[%clk 0:02:53.4]} 6... O-O {[%clk
0:02:52.6]} 7. d4 {[%clk 0:02:49.7]} 7... d5 {[%clk 0:02:49.9]} 8. e5 {[%clk
0:02:46.8]} 8... Ne4 {[%clk 0:02:49.8]} 9. Nbd2 {[%clk 0:02:46.2]} 9... Nxd2
{[%clk 0:02:31.5]} 10. Bxd2 {[%clk 0:02:45.3]} 10... cxd4 {[%clk 0:02:30.2]} 11.
cxd4 {[%clk 0:02:44.5]} 11... Bg4 {[%clk 0:02:30.1]} 12. Bxc6 {[%clk 0:02:38.3]}
12... bxc6 {[%clk 0:02:29.1]} 13. h3 {[%clk 0:02:39.2]} 13... Bf5 {[%clk
0:02:27.6]} 14. Be3 {[%clk 0:02:37.5]} 14... Qb6 {[%clk 0:02:26.4]} 15. Qd2
{[%clk 0:02:37.2]} 15... Rab8 {[%clk 0:02:25.9]} 16. b3 {[%clk 0:02:37.2]} 16...
Rfc8 {[%clk 0:02:25.1]} 17. Rec1 {[%clk 0:02:30.4]} 17... Bf8 {[%clk 0:02:23.9]}
18. Bh6 {[%clk 0:02:29.3]} 18... Be4 {[%clk 0:01:21]} 19. Bxf8 {[%clk
0:02:25.8]} 19... Rxf8 {[%clk 0:01:21.9]} 20. Nh2 {[%clk 0:02:14.3]} 20... f6
{[%clk 0:01:20.7]} 21. exf6 {[%clk 0:02:13.5]} 21... exf6 {[%clk 0:01:11.9]} 22.
Ng4 {[%clk 0:02:00.4]} 22... Kh8 {[%clk 0:01:11.3]} 23. Rc5 {[%clk 0:01:50.8]}
23... Rbe8 {[%clk 0:01:07.5]} 24. Rac1 {[%clk 0:01:45.7]} 24... Re6 {[%clk
0:01:06.8]} 25. Qc3 {[%clk 0:01:32.4]} 25... Rc8 {[%clk 0:00:59.3]} 26. Ne3
{[%clk 0:01:17.7]} 26... Qd8 {[%clk 0:00:36.5]} 27. f3 {[%clk 0:01:09.2]} 27...
Bf5 {[%clk 0:00:36.1]} 28. Nxd5 {[%clk 0:01:07.3]} 28... Rd6 {[%clk 0:00:27.3]}
29. Ne3 {[%clk 0:01:05.8]} 29... Be6 {[%clk 0:00:20.1]} 30. d5 {[%clk
0:01:04.9]} 30... Bxd5 {[%clk 0:00:18.9]} 31. Nxd5 {[%clk 0:01:04]} 31... Rxd5
{[%clk 0:00:18.8]} 32. Rxd5 {[%clk 0:01:04]} 32... Qxd5 {[%clk 0:00:19]} 33.
Qxf6+ {[%clk 0:01:04.5]} 33... Kg8 {[%clk 0:00:19.5]} 34. Re1 {[%clk 0:00:59]}
34... Qc5+ {[%clk 0:00:19.7]} 35. Kh1 {[%clk 0:00:58.3]} 35... Rf8 {[%clk
0:00:20.1]} 36. Qe6+ {[%clk 0:00:57.5]} 36... Kh8 {[%clk 0:00:17]} 37. Qe5+
{[%clk 0:00:56.6]} 37... Qxe5 {[%clk 0:00:16.2]} 38. Rxe5 {[%clk 0:00:56.1]}
38... Rd8 {[%clk 0:00:17.1]} 39. Rc5 {[%clk 0:00:54.4]} 39... Rd2 {[%clk
0:00:16.6]} 40. Rxc6 {[%clk 0:00:53.2]} 40... Rxa2 {[%clk 0:00:16.9]} 41. Rc7
{[%clk 0:00:53.2]} 41... Rb2 {[%clk 0:00:15.3]} 42. Rb7 {[%clk 0:00:52.3]} 42...
a5 {[%clk 0:00:14.8]} 43. Ra7 {[%clk 0:00:51.4]} 43... Rxb3 {[%clk 0:00:14.1]}
44. Rxa5 {[%clk 0:00:51.5]} 44... Kg7 {[%clk 0:00:14.6]} 45. Ra7+ {[%clk
0:00:50.8]} 45... Kh6 {[%clk 0:00:14.5]} 46. Kh2 {[%clk 0:00:51.7]} 46... Rc3
{[%clk 0:00:13.6]} 47. Kg3 {[%clk 0:00:51.4]} 47... Rc2 {[%clk 0:00:14.1]} 48.
h4 {[%clk 0:00:49.1]} 48... Rb2 {[%clk 0:00:13.6]} 49. Kh3 {[%clk 0:00:48.6]}
49... Rc2 {[%clk 0:00:13.6]} 50. g3 {[%clk 0:00:47.8]} 50... Rc3 {[%clk
0:00:13.3]} 51. f4 {[%clk 0:00:47.3]} 51... Rb3 {[%clk 0:00:12.6]} 52. Kg4
{[%clk 0:00:47.1]} 52... Rc3 {[%clk 0:00:11.1]} 53. Ra5 {[%clk 0:00:46.7]} 53...
Kg7 {[%clk 0:00:10.1]} 54. h5 {[%clk 0:00:44.7]} 54... Rc6 {[%clk 0:00:07.4]}
55. Ra7+ {[%clk 0:00:42.8]} 55... Kg8 {[%clk 0:00:06.7]} 56. h6 {[%clk
0:00:40.4]} 56... Rd6 {[%clk 0:00:05.6]} 57. f5 {[%clk 0:00:39]} 57... gxf5+
{[%clk 0:00:05.3]} 58. Kxf5 {[%clk 0:00:38.4]} 58... Rxh6 {[%clk 0:00:05.4]} 59.
g4 {[%clk 0:00:37.8]} 59... Rg6 {[%clk 0:00:05.6]} 60. g5 {[%clk 0:00:37.6]}
60... Rb6 {[%clk 0:00:05.1]} 61. Ra8+ {[%clk 0:00:35.5]} 61... Kg7 {[%clk
0:00:04.8]} 62. Ra7+ {[%clk 0:00:35.4]} 62... Kg8 {[%clk 0:00:05.4]} 63. Kg4
{[%clk 0:00:34.1]} 63... Rc6 {[%clk 0:00:04.5]} 64. Kh5 {[%clk 0:00:33.5]} 64...
Rb6 {[%clk 0:00:04.8]} 65. Re7 {[%clk 0:00:26.3]} 65... Rb1 {[%clk 0:00:04.5]}
66. Kg4 {[%clk 0:00:18.6]} 66... Rg1+ {[%clk 0:00:04.2]} 67. Kh5 {[%clk
0:00:18.2]} 67... Rg2 {[%clk 0:00:03.5]} 68. Rb7 {[%clk 0:00:14.4]} 68... Rh2+
{[%clk 0:00:03.9]} 69. Kg4 {[%clk 0:00:14.3]} 69... Rg2+ {[%clk 0:00:04.8]} 70.
Kh5 {[%clk 0:00:14.2]} 70... Rg1 {[%clk 0:00:05]} 71. Rb8+ {[%clk 0:00:10.6]}
71... Kg7 {[%clk 0:00:04.3]} 72. Rb7+ {[%clk 0:00:09.4]} 72... Kg8 {[%clk
0:00:04.5]} 73. Rb8+ {[%clk 0:00:07.3]} 73... Kg7 {[%clk 0:00:04.8]} 74. Rb7+
{[%clk 0:00:08.2]} 74... Kh8 {[%clk 0:00:05.2]} 75. Rb8+ {[%clk 0:00:09.1]}
75... Kg7 {[%clk 0:00:05.4]} 1/2-1/2

[Event "*** Titled Tuesday Blitz"]
[Site "Chess.com"]
[Date "2020.04.07"]
[Round "5"]
[White "Galileo22"]
[Black "nochewycandy"]
[Result "1/2-1/2"]
[WhiteElo "2343"]
[BlackElo "2517"]
[TimeControl "180+1"]
[EndTime "13:58:17 PDT"]
[Termination "Game drawn - insufficient material"]

1. d4 {[%clk 0:02:58.3]} 1... g6 {[%clk 0:02:59]} 2. Nf3 {[%clk 0:02:57.1]} 2...
Bg7 {[%clk 0:02:58.1]} 3. e4 {[%clk 0:02:57.6]} 3... d6 {[%clk 0:02:58.5]} 4.
Bc4 {[%clk 0:02:58.1]} 4... Nf6 {[%clk 0:02:58.4]} 5. Qe2 {[%clk 0:02:50.8]}
5... O-O {[%clk 0:02:58.1]} 6. h3 {[%clk 0:02:50.2]} 6... d5 {[%clk 0:02:53]} 7.
exd5 {[%clk 0:02:47.7]} 7... Nxd5 {[%clk 0:02:53.9]} 8. O-O {[%clk 0:02:46.4]}
8... Nb6 {[%clk 0:02:51.4]} 9. Bd3 {[%clk 0:02:40.7]} 9... Nc6 {[%clk
0:02:43.9]} 10. c3 {[%clk 0:02:31.6]} 10... Be6 {[%clk 0:02:31.8]} 11. Bg5
{[%clk 0:02:25.4]} 11... Qd7 {[%clk 0:02:29.2]} 12. Nbd2 {[%clk 0:02:09.7]}
12... Bf5 {[%clk 0:02:16.2]} 13. Ne4 {[%clk 0:02:06]} 13... Bxe4 {[%clk
0:02:12.4]} 14. Qxe4 {[%clk 0:02:03.5]} 14... e6 {[%clk 0:02:09.1]} 15. Rfe1
{[%clk 0:02:00.4]} 15... a6 {[%clk 0:02:07.4]} 16. Rad1 {[%clk 0:01:58.3]} 16...
Rae8 {[%clk 0:02:01.3]} 17. Bb1 {[%clk 0:01:52]} 17... Nc4 {[%clk 0:01:54]} 18.
Qe2 {[%clk 0:01:47.5]} 18... Nd6 {[%clk 0:01:51]} 19. Qd2 {[%clk 0:01:42.6]}
19... b5 {[%clk 0:01:36.7]} 20. Ne5 {[%clk 0:01:38]} 20... Nxe5 {[%clk
0:01:24.9]} 21. dxe5 {[%clk 0:01:32.9]} 21... f6 {[%clk 0:01:25.1]} 22. exd6
{[%clk 0:01:09.5]} 22... fxg5 {[%clk 0:01:24.7]} 23. dxc7 {[%clk 0:01:07.9]}
23... Qxc7 {[%clk 0:01:24.8]} 24. Qxg5 {[%clk 0:01:05.2]} 24... Rf6 {[%clk
0:01:19.5]} 25. Re2 {[%clk 0:01:03.6]} 25... Ref8 {[%clk 0:01:14.6]} 26. Bc2
{[%clk 0:00:55.6]} 26... Qb6 {[%clk 0:01:13.8]} 27. Qg3 {[%clk 0:00:52.7]} 27...
a5 {[%clk 0:00:57.4]} 28. Rf1 {[%clk 0:00:45.2]} 28... a4 {[%clk 0:00:53.7]} 29.
a3 {[%clk 0:00:44.3]} 29... Qc5 {[%clk 0:00:50.8]} 30. Qe3 {[%clk 0:00:39.7]}
30... Qd6 {[%clk 0:00:42.9]} 31. Qd3 {[%clk 0:00:36.5]} 31... Qb6 {[%clk
0:00:41.8]} 32. Qe3 {[%clk 0:00:35.3]} 32... Qc7 {[%clk 0:00:40.2]} 33. Bd3
{[%clk 0:00:32.6]} 33... Qb8 {[%clk 0:00:37]} 34. h4 {[%clk 0:00:29.1]} 34... h5
{[%clk 0:00:32.9]} 35. Bb1 {[%clk 0:00:27.9]} 35... Kh7 {[%clk 0:00:32.6]} 36.
Qe4 {[%clk 0:00:22.5]} 36... Bh6 {[%clk 0:00:27.8]} 37. g3 {[%clk 0:00:21.3]}
37... Qd6 {[%clk 0:00:24.9]} 38. Kg2 {[%clk 0:00:20.9]} 38... Qc5 {[%clk
0:00:22.8]} 39. Ba2 {[%clk 0:00:18.2]} 39... e5 {[%clk 0:00:15.8]} 40. Qd5
{[%clk 0:00:15.3]} 40... Qxd5+ {[%clk 0:00:15.3]} 41. Bxd5 {[%clk 0:00:16.2]}
41... Kg7 {[%clk 0:00:14.8]} 42. Be4 {[%clk 0:00:16]} 42... Re8 {[%clk
0:00:14.6]} 43. Rd1 {[%clk 0:00:15.3]} 43... Re7 {[%clk 0:00:14.2]} 44. Rd5
{[%clk 0:00:14.3]} 44... Rb6 {[%clk 0:00:14.7]} 45. Re1 {[%clk 0:00:13.3]} 45...
Kf6 {[%clk 0:00:15.1]} 46. Red1 {[%clk 0:00:13.4]} 46... Ree6 {[%clk 0:00:15.3]}
47. f3 {[%clk 0:00:13]} 47... Re7 {[%clk 0:00:12.8]} 48. g4 {[%clk 0:00:12.6]}
48... hxg4 {[%clk 0:00:12.7]} 49. fxg4 {[%clk 0:00:13.5]} 49... Bf4 {[%clk
0:00:13.6]} 50. Kf3 {[%clk 0:00:12.7]} 50... Ree6 {[%clk 0:00:12.2]} 51. g5+
{[%clk 0:00:12.2]} 51... Kg7 {[%clk 0:00:12.6]} 52. Rd7+ {[%clk 0:00:11.9]}
52... Kf8 {[%clk 0:00:12.8]} 53. Rh7 {[%clk 0:00:11.1]} 53... Rbd6 {[%clk
0:00:11.6]} 54. Rxd6 {[%clk 0:00:09.8]} 54... Rxd6 {[%clk 0:00:11.9]} 55. Rb7
{[%clk 0:00:10.3]} 55... Rd2 {[%clk 0:00:06.7]} 56. Rxb5 {[%clk 0:00:09.9]}
56... Rh2 {[%clk 0:00:07.6]} 57. Rb8+ {[%clk 0:00:08.6]} 57... Kf7 {[%clk
0:00:07.6]} 58. Rb7+ {[%clk 0:00:08.6]} 58... Kf8 {[%clk 0:00:08.1]} 59. Bxg6
{[%clk 0:00:08.1]} 59... Rxh4 {[%clk 0:00:07.7]} 60. Be4 {[%clk 0:00:05]} 60...
Rh3+ {[%clk 0:00:07.3]} 61. Kg4 {[%clk 0:00:04.7]} 61... Rg3+ {[%clk 0:00:07.7]}
62. Kf5 {[%clk 0:00:04.7]} 62... Rxg5+ {[%clk 0:00:08.6]} 63. Ke6 {[%clk
0:00:05]} 63... Rg1 {[%clk 0:00:06.3]} 64. Bc6 {[%clk 0:00:04.6]} 64... Rd1
{[%clk 0:00:04.8]} 65. Bxa4 {[%clk 0:00:04]} 65... Rd2 {[%clk 0:00:04.6]} 66. b4
{[%clk 0:00:03.2]} 66... e4 {[%clk 0:00:03.9]} 67. Rf7+ {[%clk 0:00:01.7]} 67...
Kg8 {[%clk 0:00:04.3]} 68. Rxf4 {[%clk 0:00:02.3]} 68... e3 {[%clk 0:00:05.2]}
69. Rg4+ {[%clk 0:00:02.6]} 69... Kh7 {[%clk 0:00:05.1]} 70. Re4 {[%clk
0:00:03.5]} 70... Kh6 {[%clk 0:00:06]} 71. Bb5 {[%clk 0:00:04.2]} 71... e2
{[%clk 0:00:05.8]} 72. Rxe2 {[%clk 0:00:04.3]} 72... Rd8 {[%clk 0:00:06.7]} 73.
Re5 {[%clk 0:00:04.2]} 73... Kg6 {[%clk 0:00:06.5]} 74. Ke7 {[%clk 0:00:03.9]}
74... Rd1 {[%clk 0:00:06.2]} 75. Re6+ {[%clk 0:00:04.8]} 75... Kg7 {[%clk
0:00:06.4]} 76. Bd7 {[%clk 0:00:05.3]} 76... Rc1 {[%clk 0:00:06.7]} 77. c4
{[%clk 0:00:06.2]} 77... Rxc4 {[%clk 0:00:07]} 78. b5 {[%clk 0:00:07.1]} 78...
Rc3 {[%clk 0:00:07.4]} 79. Rc6 {[%clk 0:00:08]} 79... Rxa3 {[%clk 0:00:08.1]}
80. Kd8 {[%clk 0:00:08.1]} 80... Rb3 {[%clk 0:00:08.3]} 81. Kc7 {[%clk 0:00:09]}
81... Rxb5 {[%clk 0:00:08.4]} 82. Rd6 {[%clk 0:00:08.7]} 82... Rg5 {[%clk
0:00:08.9]} 83. Bc6 {[%clk 0:00:09.6]} 83... Rg6 {[%clk 0:00:07.8]} 84. Kd7
{[%clk 0:00:10.5]} 84... Rxd6+ {[%clk 0:00:07.6]} 85. Kxd6 {[%clk 0:00:11.4]}
1/2-1/2